bitfinex/quotes_ETHUSD_20260109
["timestamp","ask_amount","ask_price","bid_price","bid_amount"]
[1767931852049,4.05072773,3116.5,3115.8,0.9262705]
[1767931852221,0.96304559,3116.4,3115.7,0.002]
[1767931852436,0.96304559,3116.3,3115.7,0.002]
[1767931852627,0.39325504,3116.2,3115.7,0.002]
[1767931853157,3.20913962,3116.1,3115.7,0.002]
[1767931855050,4.17218521,3116.1,3115.7,0.002]
[1767931855875,0.96304559,3116.0,3115.7,0.002]
[1767931856925,4.17230261,3116.0,3115.7,0.002]
[1767931857113,4.17230261,3116.0,3115.4,0.002]
[1767931857114,11.42557651,3116.0,3115.4,0.002]
[1767931857321,0.96304559,3115.9,3115.4,0.002]
[1767931857724,0.96304559,3115.5,3114.7,0.9262705]
[1767931858931,3.20971138,3115.6,3114.9,0.9262705]
[1767931859151,4.24488606,3115.6,3114.9,0.9262705]
[1767931859363,0.96304559,3115.5,3114.7,0.9262705]
[1767931860561,0.96304559,3115.3,3114.5,0.9282705]
[1767931861058,4.17311235,3115.2,3114.5,0.9282705]
[1767931861434,0.96304559,3115.1,3114.5,0.002]
[1767931861763,0.96304559,3114.9,3114.5,0.002]
[1767931862464,2.9695048,3114.8,3114.5,0.002]
[1767931862648,0.99685192,3114.8,3114.5,0.002]
[1767931863240,0.73831791,3115.0,3114.7,2.9695048]
[1767931863555,0.842,3115.2,3114.7,3.92145993]
[1767931863751,0.842,3115.2,3114.7,0.95195513]
[1767931864262,0.842,3115.2,3114.5,0.95395513]
[1767931864462,3.20996372,3115.3,3114.6,0.95195513]
[1767931865031,3.20996372,3115.3,3114.5,2.9715048]
[1767931865032,6.4587921,3116.1,3115.3,0.95195513]
[1767931865238,3.20928073,3116.0,3115.5,3.90107266]
[1767931865464,3.20928073,3116.0,3115.5,0.95195513]
[1767931865632,3.20928073,3116.0,3115.3,2.9695048]
[1767931865633,0.99685192,3115.9,3115.3,2.9695048]
[1767931865831,0.42061326,3115.8,3115.3,2.9695048]
[1767931866032,0.42061326,3115.8,3115.4,0.95195513]
[1767931866262,3.20928073,3116.0,3115.4,0.95195513]
[1767931866461,4.20601851,3116.1,3115.4,0.95195513]
[1767931866643,0.99685192,3116.0,3115.3,2.9695048]
[1767931867241,3.20916659,3116.1,3115.2,0.95195513]
[1767931867242,4.11430661,3115.9,3115.2,0.95195513]
[1767931867870,0.904961,3115.9,3115.2,0.95195513]
[1767931869064,0.904961,3115.9,3115.1,2.9695048]
[1767931869268,0.904961,3115.8,3115.5,0.001]
[1767931869438,0.904961,3115.8,3115.0,0.9637085]
[1767931869439,0.904961,3115.7,3115.0,0.9637085]
[1767931871953,0.904961,3115.7,3115.0,4.17398132]
[1767931872269,0.904961,3115.7,3114.9,6.17987149]
[1767931872846,0.904961,3115.7,3114.9,7.14357999]
[1767931873144,0.904961,3115.7,3115.0,0.714358]
[1767931874774,0.904961,3115.7,3114.7,3.9332133]
[1767931874972,0.904961,3115.6,3114.7,7.14373165]
[1767931875171,0.904961,3115.6,3114.9,2.9695048]
[1767931875376,0.904961,3115.6,3114.9,7.14355591]
[1767931875971,0.904961,3115.8,3115.1,3.9332133]
[1767931876275,1.746961,3116.0,3115.3,2.9695048]
[1767931876587,1.0796571,3115.9,3115.3,2.9695048]
[1767931878475,0.904961,3115.8,3115.3,2.9695048]
[1767931882062,0.904961,3115.8,3115.5,0.002]
[1767931882262,0.001,3115.6,3115.5,0.002]
[1767931883471,0.905961,3115.6,3115.5,0.002]
[1767931884382,0.001,3115.6,3115.5,0.002]
[1767931894499,0.001,3116.2,3115.6,0.97117283]
[1767931894796,0.001,3116.2,3115.8,2.9695048]
[1767931894998,0.001,3116.2,3115.8,3.94067763]
[1767931895293,0.001,3116.2,3115.8,2.9695048]
[1767931897898,0.001,3116.2,3116.0,2.9695048]
[1767931898103,0.002,3116.5,3116.0,3.94067763]
[1767931898298,0.002,3116.5,3116.2,2.9695048]
[1767931898766,0.002,3116.5,3116.1,0.97117283]
[1767931901078,0.002,3116.5,3115.9,7.14867143]
[1767931901279,0.002,3116.5,3116.0,0.75427392]
[1767931906327,0.002,3116.5,3116.1,0.97117283]
[1767931906605,1.79511167,3116.9,3116.2,3.93935571]
[1767931906785,1.79511167,3116.9,3116.0,0.75427392]
[1767931906786,1.79511167,3116.9,3116.0,1.72544675]
[1767931907126,0.95311167,3116.8,3116.0,1.72544675]
[1767931907400,0.95311167,3116.8,3116.1,0.49447661]
[1767931907603,0.002,3116.2,3116.1,0.001]
[1767931907795,0.95311167,3116.8,3116.1,0.001]
[1767931907796,0.002,3116.5,3116.1,0.001]
[1767931907996,0.95511167,3116.5,3116.1,0.001]
[1767931908195,0.002,3116.5,3116.1,0.001]
[1767931909106,0.002,3116.5,3116.1,0.97217283]
[1767931909410,0.002,3116.5,3116.2,1.464738]
[1767931909702,0.002,3116.5,3116.2,0.49356517]
[1767931910222,0.002,3116.5,3116.1,0.001]
[1767931911109,0.842,3117.0,3116.3,0.97117283]
[1767931911487,0.95311167,3116.9,3116.2,2.96818288]
[1767931912003,0.95311167,3116.9,3116.1,0.001]
[1767931912180,0.95311167,3116.8,3116.1,0.001]
[1767931912678,0.95311167,3116.7,3116.1,0.001]
[1767931913897,0.44441891,3116.8,3116.1,0.001]
[1767931913898,0.95311167,3116.3,3116.1,0.001]
[1767931914281,3.2088307,3116.4,3116.1,0.001]
[1767931915611,3.20861052,3116.7,3116.1,0.97217283]
[1767931918335,3.62717368,3116.8,3116.1,0.97217283]
[1767931919132,3.62717368,3116.8,3116.4,0.001]
[1767931919633,0.002,3116.5,3116.4,0.001]
[1767931939285,0.96448303,3116.5,3116.4,0.001]
[1767931943483,0.002,3116.5,3116.4,0.001]
[1767931950197,1.7026357,3116.5,3116.4,0.001]
[1767931950394,0.96248303,3116.4,3116.1,0.001]
[1767931951167,0.96248303,3116.4,3115.6,0.93621241]
[1767931951168,3.20893367,3116.3,3115.6,0.93621241]
[1767931951486,0.96248303,3116.2,3115.5,0.002]
[1767931952301,0.96248303,3116.2,3115.5,0.93821241]
[1767931953711,3.20913962,3116.1,3115.5,0.93821241]
[1767931955219,3.20913962,3116.1,3115.8,0.001]
[1767931955510,3.94720588,3116.1,3115.8,0.001]
[1767931957608,3.20913962,3116.1,3115.8,0.001]
[1767931958310,6.41797543,3116.3,3115.8,0.001]
[1767931962525,0.96077377,3116.3,3115.8,0.001]
[1767931963615,0.96077377,3116.2,3115.8,0.001]
[1767931966591,3.20913962,3116.1,3115.8,0.001]
[1767931967287,4.24398168,3116.1,3115.8,0.001]
[1767931967726,3.20905569,3116.2,3115.8,0.001]
[1767931968090,3.20905569,3116.2,3115.8,0.92904541]
[1767931968293,3.20897546,3116.3,3115.8,0.92904541]
[1767931968927,3.20883593,3116.4,3115.8,0.92904541]
[1767931968928,6.41767186,3116.4,3115.8,0.92904541]
[1767931970726,3.20883593,3116.4,3115.9,0.92804541]
[1767931972837,0.74015267,3116.5,3115.9,0.92804541]
[1767931973045,0.002,3116.5,3116.2,3.89749371]
[1767931974111,0.002,3116.5,3116.2,0.92804541]
[1767931978151,0.002,3116.5,3116.0,3.89749371]
[1767931978336,0.002,3116.5,3116.1,0.92804541]
[1767931979048,0.002,3116.2,3116.1,0.92804541]
[1767931979222,0.002,3116.5,3116.1,0.92804541]
[1767931980254,0.002,3116.5,3116.3,0.92804541]
[1767931980550,0.96077377,3117.1,3116.7,2.9694483]
[1767931982243,4.16892219,3117.1,3116.7,2.9694483]
[1767931982564,7.37707061,3117.1,3116.7,2.9694483]
[1767931983125,4.16892219,3117.1,3116.7,2.9694483]
[1767931984362,0.002,3117.3,3116.7,2.9694483]
[1767931984590,0.002,3117.3,3116.7,3.87459558]
[1767931984964,0.002,3117.3,3116.7,4.26205514]
[1767931986649,0.002,3117.3,3116.9,2.9694483]
[1767931986843,0.002,3117.3,3117.1,2.9694483]
[1767931988371,0.002,3117.3,3116.9,0.94833289]
[1767931988666,0.002,3117.3,3117.0,2.9694483]
[1767931988855,0.002,3117.3,3117.0,3.36122642]
[1767931991561,0.002,3117.3,3117.0,0.39177812]
[1767931991966,0.002,3117.3,3116.9,0.94833289]
[1767931992567,0.002,3117.3,3116.8,2.9694483]
[1767931992568,0.90976813,3117.3,3116.8,2.9694483]
[1767931993291,0.90776813,3117.2,3116.8,2.9694483]
[1767931994819,0.90776813,3117.1,3116.7,0.38745956]
[1767931994972,0.90776813,3117.1,3116.4,2.9694483]
[1767931995771,3.20806356,3117.2,3116.5,0.94833289]
[1767931997595,6.41612712,3117.2,3116.5,0.94833289]
[1767931997803,6.41612712,3117.2,3116.3,3.91778119]
[1767931997804,0.90776813,3117.1,3116.3,3.91778119]
[1767931998169,0.90776813,3117.1,3116.4,0.94833289]
[1767931999003,6.41612712,3117.2,3116.4,0.94833289]
[1767931999395,7.32389525,3117.2,3116.4,0.94833289]
[1767931999599,0.002,3117.3,3116.3,2.9694483]
[1767931999600,3.20821302,3117.0,3116.3,2.9694483]
[1767931999915,3.20821302,3117.0,3116.3,3.91778119]
[1767932000511,3.20821302,3117.0,3116.4,0.94833289]
[1767932002020,3.20821302,3117.0,3116.7,0.001]
[1767932002223,3.21021302,3117.0,3116.7,0.001]
[1767932002892,7.15103521,3117.0,3116.7,0.001]
[1767932003419,3.94282219,3117.0,3116.7,0.001]
[1767932011536,8.05880334,3117.0,3116.7,0.001]
[1767932011723,0.90776813,3116.9,3116.7,0.001]
[1767932011917,3.20841889,3116.8,3116.7,0.001]
[1767932014155,3.20831595,3116.9,3116.7,0.001]
[1767932014355,4.99553144,3116.9,3116.7,0.001]
[1767932015529,8.20384739,3116.9,3116.0,4.72480517]
[1767932015724,8.20384739,3116.9,3116.1,0.91335687]
[1767932016552,8.20384739,3116.9,3115.8,0.001]
[1767932016553,0.98132486,3116.7,3115.9,0.91335687]
[1767932016732,1.37640218,3116.6,3115.9,0.91335687]
[1767932018032,6.41745546,3116.5,3115.9,0.91335687]
[1767932019536,3.20872773,3116.5,3115.9,0.91335687]
[1767932022299,4.18995668,3116.6,3116.0,3.88280517]
[1767932022300,3.20864327,3116.6,3116.0,3.88280517]
[1767932022585,0.98132486,3116.8,3116.2,2.9694483]
[1767932023990,3.20852183,3116.7,3116.2,2.9694483]
[1767932024508,3.20852183,3116.7,3116.1,0.91335687]
[1767932025194,3.20852183,3116.7,3116.2,0.001]
[1767932026260,6.41704366,3116.7,3116.2,0.001]
[1767932026459,3.20852183,3116.7,3116.2,0.001]
[1767932026662,6.41704366,3116.7,3116.2,0.001]
[1767932035394,7.15688051,3116.7,3116.2,0.001]
[1767932036603,7.15688051,3116.7,3116.5,0.001]
[1767932045811,3.94835868,3116.7,3116.5,0.001]
[1767932052421,0.91547184,3116.6,3115.8,0.9417951]
[1767932052597,7.3329273,3116.5,3115.8,0.9417951]
[1767932052796,0.92650059,3116.4,3115.8,0.001]
[1767932053990,6.41786734,3116.3,3115.8,0.001]
[1767932059521,6.41786734,3116.3,3116.1,0.001]
[1767932059721,6.41786734,3116.3,3115.8,0.001]
[1767932061122,7.15230413,3116.3,3115.8,0.001]
[1767932064802,3.94337046,3116.3,3115.8,0.98050348]
[1767932065131,3.20893367,3116.3,3115.8,0.98050348]
[1767932065309,6.41746398,3116.5,3115.8,0.98050348]
[1767932070934,6.41746398,3116.5,3116.1,0.002]
[1767932071137,0.001,3116.2,3116.1,0.002]
[1767932075452,0.001,3116.2,3115.8,0.001]
[1767932075653,0.94140071,3116.2,3115.8,0.001]
[1767932075818,1.33235929,3116.2,3115.8,0.001]
[1767932076453,0.39195858,3116.2,3115.8,0.001]
[1767932077351,3.20913962,3116.1,3115.8,0.001]
[1767932080550,6.41827924,3116.1,3115.8,0.001]
[1767932081055,3.20913962,3116.1,3115.8,0.001]
[1767932090165,8.33666344,3116.1,3115.8,0.001]
[1767932090364,2.96968238,3116.0,3115.8,0.001]
[1767932090567,4.18712311,3116.1,3115.8,0.001]
[1767932094074,7.39626273,3116.1,3115.8,0.001]
[1767932096347,4.18712311,3116.1,3115.8,0.001]
[1767932096548,1.07578153,3116.0,3115.8,0.001]
[1767932097977,4.28507229,3116.0,3115.8,0.001]
[1767932100776,0.001,3116.2,3115.8,0.90994783]
[1767932101075,0.001,3116.2,3115.8,0.001]
[1767932101320,0.001,3116.2,3115.8,0.90994783]
[1767932101598,3.21003789,3116.2,3115.8,0.90994783]
[1767932101956,2.96968238,3115.9,3115.5,0.002]
[1767932102164,7.03704781,3116.2,3115.1,0.91094783]
[1767932102165,2.96968238,3115.7,3115.1,0.91094783]
[1767932103096,6.17905956,3115.9,3115.1,0.91094783]
[1767932103292,0.001,3116.2,3115.5,0.93462233]
[1767932103475,0.001,3116.2,3115.7,0.93462233]
[1767932105855,0.001,3116.2,3116.0,0.001]
[1767932107186,2.97068238,3116.2,3116.0,0.001]
[1767932107419,2.97068238,3116.2,3115.5,0.93462233]
[1767932109093,3.20913962,3116.1,3115.5,0.93462233]
[1767932109272,3.20913962,3116.1,3115.6,0.17766223]
[1767932109669,3.20913962,3116.1,3115.5,0.93462233]
[1767932109991,2.96968238,3116.0,3115.3,0.93462233]
[1767932110195,4.12360882,3116.1,3115.3,0.93462233]
[1767932110582,3.20913962,3116.1,3115.3,0.93462233]
[1767932117288,3.20913962,3116.1,3115.6,0.002]
[1767932119604,3.96943284,3116.0,3115.6,0.002]
[1767932119809,2.96968238,3115.8,3115.3,0.002]
[1767932119982,0.99975046,3115.9,3115.3,0.002]
[1767932120420,8.21743404,3116.1,3115.3,0.97545591]
[1767932121414,7.21768358,3116.1,3115.3,0.97545591]
[1767932122323,10.4268232,3116.1,3115.3,0.97545591]
[1767932122523,7.21768358,3116.1,3115.3,0.97545591]
[1767932123020,8.21743404,3116.1,3115.3,0.97545591]
[1767932125320,3.20913962,3116.1,3115.4,0.97345591]
[1767932126217,3.21003664,3116.2,3115.4,0.97345591]
[1767932128245,4.2097871,3116.2,3115.4,0.97345591]
[1767932129665,0.001,3115.9,3115.6,0.002]
[1767932132979,0.99971634,3115.9,3115.6,0.002]
[1767932133183,1.41961223,3115.8,3115.6,0.002]
[1767932133355,0.99871634,3115.8,3115.6,0.002]
[1767932136061,4.20817754,3115.8,3115.6,0.002]
[1767932136459,0.99871634,3115.6,3115.1,0.002]
[1767932136662,9.38860478,3115.8,3115.1,0.002]
[1767932136663,3.96839872,3115.5,3115.1,0.002]
[1767932136982,0.99871634,3115.4,3115.1,0.002]
[1767932137368,0.99871634,3115.6,3115.1,0.002]
[1767932137687,0.39683987,3115.5,3115.1,0.002]
[1767932137872,0.99871634,3115.6,3115.1,0.002]
[1767932139586,4.20837891,3115.6,3115.1,0.002]
[1767932140384,4.20838393,3115.6,3115.1,0.002]
[1767932140559,0.99871634,3115.5,3115.1,0.002]
[1767932140976,2.96968238,3115.4,3115.1,0.002]
[1767932141179,3.68750174,3115.4,3115.1,0.002]
[1767932141967,6.89740687,3115.4,3115.1,0.002]
[1767932142166,0.71781936,3115.4,3115.1,0.002]
[1767932142474,3.92768355,3115.4,3115.1,0.002]
[1767932142674,6.89736593,3115.4,3115.1,0.002]
[1767932142891,0.78960823,3115.3,3115.1,0.002]
[1767932144392,6.89736593,3115.4,3115.1,0.002]
[1767932144894,7.89608227,3115.4,3115.1,0.002]
[1767932145309,0.71781936,3115.4,3115.1,0.002]
[1767932145470,3.96839872,3115.8,3115.1,0.002]
[1767932146291,3.20957896,3115.7,3115.1,0.002]
[1767932147508,4.20817733,3115.8,3115.1,0.95506711]
[1767932147708,3.20946099,3115.8,3115.1,0.95506711]
[1767932147893,3.21035062,3115.9,3115.1,0.95506711]
[1767932148278,3.21035062,3115.9,3115.2,0.95306711]
[1767932148476,0.001,3115.9,3115.2,0.95306711]
[1767932149410,0.001,3115.9,3115.3,0.95306711]
[1767932150714,3.21034561,3115.9,3115.3,0.95306711]
[1767932153722,0.001,3115.6,3115.3,0.95306711]
[1767932154019,0.001,3115.6,3115.3,0.16686335]
[1767932154223,0.001,3115.6,3115.1,0.95506711]
[1767932155753,0.001,3115.6,3115.1,3.92542571]
[1767932157092,0.001,3115.6,3115.2,0.95306711]
[1767932161730,3.21009786,3116.2,3115.6,0.95306711]
[1767932162828,0.001,3116.2,3115.6,0.95306711]
[1767932163709,0.001,3116.2,3115.7,0.97024443]
[1767932164407,0.001,3116.2,3115.6,0.39234257]
[1767932164606,6.4587921,3116.6,3115.6,0.39234257]
[1767932164607,4.17132048,3116.9,3116.1,0.97024443]
[1767932164804,0.96183419,3116.8,3116.1,3.94060303]
[1767932164991,1.46305245,3116.7,3115.9,0.97024443]
[1767932165431,0.96183419,3116.6,3115.9,0.97024443]
[1767932166348,3.20872773,3116.5,3115.9,0.97024443]
[1767932166505,0.96183419,3116.6,3115.9,0.97024443]
[1767932166506,4.17047713,3116.6,3115.9,0.97024443]
[1767932167831,4.17047713,3116.6,3115.7,3.94060303]
[1767932168037,0.96183419,3116.5,3115.8,0.75425644]
[1767932168733,4.17064643,3116.5,3115.8,0.75425644]
[1767932171541,0.95782846,3116.4,3115.8,0.75425644]
[1767932171740,0.95782846,3116.4,3115.6,0.39234257]
[1767932171912,0.95782846,3116.4,3115.6,3.36270117]
[1767932172312,0.95782846,3116.4,3115.6,6.57235467]
[1767932173843,0.95782846,3116.3,3115.6,3.36270117]
[1767932174346,0.95782846,3116.3,3115.6,6.57235113]
[1767932174518,0.95782846,3116.3,3115.7,0.74143511]
[1767932175944,0.95782846,3116.3,3115.7,3.9509796]
[1767932176308,0.95782846,3116.3,3115.8,2.9703586]
[1767932177041,0.95782846,3116.3,3116.0,0.001]
[1767932177338,0.95982846,3116.3,3116.0,0.001]
[1767932180839,0.95782846,3116.5,3116.1,2.9703586]
[1767932182112,0.95782846,3116.5,3116.0,0.29813586]
[1767932183452,0.95782846,3116.4,3116.0,0.29813586]
[1767932186032,0.95782846,3116.4,3116.0,0.001]
[1767932186544,0.95782846,3116.3,3116.0,0.001]
[1767932187972,4.16677167,3116.3,3116.0,0.001]
[1767932188141,0.95782846,3116.2,3116.0,0.001]
[1767932191569,0.95782846,3116.1,3115.1,0.002]
[1767932191751,0.95782846,3116.1,3115.1,0.41394099]
[1767932192345,6.83477908,3116.2,3115.1,0.41394099]
[1767932192346,0.95782846,3115.9,3115.1,0.41394099]
[1767932194177,0.95782846,3115.9,3115.1,0.002]
[1767932194337,0.99338572,3115.7,3115.1,0.002]
[1767932196351,0.99338572,3115.7,3115.0,6.16887809]
[1767932198497,0.99338572,3116.3,3115.5,2.9703586]
[1767932198657,0.99338572,3116.3,3115.8,2.9703586]
[1767932199371,0.99338572,3116.5,3115.8,2.9703586]
[1767932199539,0.99338572,3116.5,3115.8,0.95510517]
[1767932199744,0.99338572,3116.5,3115.8,3.92546377]
[1767932199955,0.99338572,3116.5,3115.8,2.9703586]
[1767932203586,4.20213517,3116.5,3115.8,2.9703586]
[1767932203879,0.99338572,3116.5,3115.8,2.9703586]
[1767932205581,0.99338572,3116.5,3115.7,4.1646441]
[1767932205780,0.99338572,3116.5,3115.7,7.1350027]
[1767932207464,0.99338572,3116.5,3115.7,8.16947682]
[1767932207784,3.21062633,3116.6,3115.8,0.95510517]
[1767932208585,0.99538572,3116.6,3115.9,2.96842077]
[1767932208783,0.99538572,3116.6,3115.9,3.92352594]
[1767932209083,0.002,3116.6,3116.0,0.95510517]
[1767932209250,0.002,3116.6,3115.9,2.96842077]
[1767932209251,0.99338572,3116.5,3115.9,2.96842077]
[1767932209658,0.74323377,3116.6,3115.9,3.92352594]
[1767932210083,0.99338572,3116.5,3115.9,2.96842077]
[1767932210384,0.74323377,3116.6,3115.9,3.92352594]
[1767932210592,0.002,3116.6,3116.2,0.95510517]
[1767932210889,0.002,3117.0,3116.5,2.96842077]
[1767932211050,0.99338572,3116.9,3116.5,2.96842077]
[1767932211453,3.21021653,3117.0,3116.5,2.96842077]
[1767932211682,0.42036022,3116.9,3116.5,2.96842077]
[1767932211883,0.99338572,3116.9,3116.5,2.96842077]
[1767932212270,0.002,3117.0,3116.5,2.96842077]
[1767932212879,0.99538572,3117.0,3116.5,2.96842077]
[1767932214588,0.002,3117.0,3116.5,2.96842077]
[1767932214758,0.002,3117.0,3116.5,3.92352594]
[1767932214958,0.99538572,3117.0,3116.5,2.96842077]
[1767932215385,0.002,3117.0,3116.6,0.95510517]
[1767932215800,0.002,3117.3,3116.8,2.96842077]
[1767932216082,0.99538572,3117.3,3116.8,2.96842077]
[1767932216388,0.002,3117.3,3116.8,0.95510517]
[1767932216788,0.99538572,3117.3,3116.6,0.95510517]
[1767932216976,0.99538572,3117.3,3116.5,3.26526285]
[1767932217197,0.99338572,3117.2,3116.0,4.16433886]
[1767932217380,0.99338572,3117.2,3116.2,3.20902092]
[1767932217585,0.99338572,3117.2,3116.3,3.92352594]
[1767932218099,0.99338572,3117.2,3116.3,2.96842077]
[1767932218298,0.99338572,3117.2,3116.4,0.95510517]
[1767932218995,0.99338572,3117.2,3116.3,6.17731857]
[1767932219188,0.99338572,3117.1,3116.4,0.61773186]
[1767932219387,0.99338572,3117.1,3116.5,2.96842077]
[1767932219588,5.32546147,3117.3,3116.5,3.92352594]
[1767932219894,0.99338572,3117.2,3116.5,3.92352594]
[1767932220325,0.99338572,3117.2,3116.5,2.96842077]
[1767932220480,0.002,3117.3,3116.7,0.95510517]
[1767932220881,0.002,3117.3,3116.8,2.96842077]
[1767932221114,0.99538572,3117.3,3116.8,2.96842077]
[1767932221613,4.20330335,3117.3,3116.6,0.95510517]
[1767932222109,0.99338572,3117.2,3116.5,3.64792581]
[1767932222312,4.20330335,3117.3,3116.6,0.74744622]
[1767932222511,4.20330335,3117.3,3116.5,3.92352594]
[1767932222700,0.99672419,3117.2,3116.5,2.96842077]
[1767932223699,0.99672419,3117.2,3116.5,3.96142254]
[1767932223899,0.99672419,3117.2,3116.5,6.17711753]
[1767932224294,0.002,3117.3,3116.6,0.99300177]
[1767932224488,3.20990463,3117.3,3116.6,0.99300177]
[1767932224694,0.002,3116.9,3116.5,2.96842077]
[1767932224915,0.002,3116.9,3116.6,0.67949567]
[1767932225514,0.002,3116.9,3116.6,1.67249744]
[1767932226026,0.002,3116.9,3116.6,0.67949567]
[1767932226226,0.002,3116.9,3116.6,1.67249744]
[1767932226431,0.002,3116.9,3116.4,1.61073363]
[1767932226790,0.99872419,3116.9,3116.4,0.61773186]
[1767932226997,0.002,3116.9,3116.4,0.61773186]
[1767932227403,0.94740543,3116.9,3116.4,0.61773186]
[1767932227920,0.002,3116.9,3116.4,0.61773186]
[1767932228100,0.002,3116.9,3116.5,0.77148756]
[1767932229042,0.002,3116.9,3116.5,1.69136752]
[1767932229201,0.002,3116.9,3116.5,0.77148756]
[1767932230229,0.94740543,3116.9,3116.5,0.77148756]
[1767932230525,0.002,3116.9,3116.5,4.65978829]
[1767932230728,0.002,3116.9,3116.6,0.78686072]
[1767932233325,0.002,3116.9,3116.5,2.96842077]
[1767932234005,0.002,3116.9,3116.5,3.88830073]
[1767932234439,0.002,3116.9,3116.5,2.96842077]
[1767932236154,0.002,3116.9,3116.5,3.88830073]
[1767932236653,0.002,3116.9,3116.5,2.96842077]
[1767932236850,0.002,3116.9,3116.7,0.001]
[1767932239425,0.002,3116.9,3116.7,0.92087996]
[1767932240152,0.002,3116.9,3116.7,0.001]
[1767932243246,0.94740543,3116.9,3116.7,0.001]
[1767932243547,0.002,3116.9,3116.7,0.001]
[1767932245849,0.94740543,3116.9,3116.7,0.001]
[1767932246337,0.002,3116.9,3116.7,0.001]
[1767932248177,0.94740543,3116.9,3116.7,0.001]
[1767932248329,0.94540543,3116.8,3116.7,0.001]
[1767932248837,0.39358262,3116.9,3116.7,0.001]
[1767932249248,0.94740543,3116.9,3116.7,0.001]
[1767932249953,0.002,3116.9,3116.7,0.001]
[1767932250451,0.94540543,3116.8,3116.7,0.001]
[1767932250757,0.002,3116.9,3116.7,0.001]
[1767932251519,0.94540543,3116.7,3115.8,3.20941189]
[1767932251726,0.94540543,3116.7,3115.9,1.24082115]
[1767932252025,0.94540543,3116.7,3115.9,4.20924192]
[1767932252343,0.94540543,3116.7,3115.9,3.28936196]
[1767932252922,4.15349337,3116.7,3115.9,4.21233545]
[1767932253121,4.15349337,3116.7,3115.9,3.28936196]
[1767932253122,0.94496363,3116.6,3115.9,3.28936196]
[1767932256269,0.94496363,3116.6,3115.9,4.21233545]
[1767932256565,0.94496363,3116.6,3115.9,1.24391468]
[1767932256858,0.94496363,3116.6,3115.9,0.32094119]
[1767932257054,0.002,3116.9,3116.5,2.96842077]
[1767932257755,0.94696363,3116.9,3116.5,2.96842077]
[1767932257980,0.002,3116.9,3116.3,3.89139426]
[1767932259038,0.002,3116.9,3116.4,0.92297349]
[1767932259755,0.002,3116.9,3116.3,2.96842077]
[1767932260076,0.002,3116.9,3116.4,0.92297349]
[1767932260672,0.94696363,3116.9,3116.3,2.96842077]
[1767932261174,0.002,3116.9,3116.3,3.89139426]
[1767932261863,0.002,3116.9,3116.1,3.2091055]
[1767932261864,0.94496363,3116.8,3116.0,3.20922873]
[1767932262760,0.94496363,3116.8,3116.1,4.13209517]
[1767932262946,0.94496363,3116.8,3116.1,7.10051594]
[1767932263138,0.94496363,3116.8,3116.1,6.17754245]
[1767932263342,0.94496363,3116.8,3116.1,7.10051594]
[1767932263541,0.002,3116.9,3116.1,8.131502]
[1767932263775,0.94696363,3116.9,3116.1,8.131502]
[1767932263946,0.94696363,3116.9,3116.1,7.20852851]
[1767932264647,0.94696363,3116.9,3116.1,3.99940683]
[1767932264972,0.94696363,3116.9,3116.1,2.96842077]
[1767932265972,0.94496363,3116.8,3115.9,2.96842077]
[1767932267069,0.94496363,3116.7,3115.9,6.17776536]
[1767932267378,0.94496363,3116.7,3115.9,7.10073241]
[1767932267972,0.94496363,3116.7,3115.9,6.17775892]
[1767932268565,0.94496363,3116.7,3115.9,3.20933815]
[1767932268863,0.94496363,3116.7,3115.9,4.13231164]
[1767932270380,0.94496363,3116.7,3115.9,3.20933815]
[1767932270881,0.94496363,3116.7,3115.9,4.13231164]
[1767932271280,0.94496363,3116.7,3116.2,0.001]
[1767932271480,0.41534264,3116.6,3116.2,0.001]
[1767932271982,1.36030627,3116.6,3116.2,0.001]
[1767932272148,0.94496363,3116.5,3116.2,0.001]
[1767932272477,0.41534264,3116.6,3116.2,0.001]
[1767932272679,1.36030627,3116.6,3116.2,0.001]
[1767932273275,0.94496363,3116.5,3116.2,0.001]
[1767932273478,0.41534264,3116.6,3116.2,0.001]
[1767932275277,0.94496363,3116.5,3116.2,0.001]
[1767932275648,0.41534264,3116.6,3116.2,0.001]
[1767932276175,0.94496363,3116.5,3116.2,0.001]
[1767932276369,0.41534264,3116.6,3116.2,0.001]
[1767932277961,0.94496363,3116.5,3116.2,0.001]
[1767932278165,0.41534264,3116.6,3116.2,0.001]
[1767932280157,0.94496363,3116.5,3116.2,0.001]
[1767932280353,0.41534264,3116.6,3116.2,0.001]
[1767932281482,0.94496363,3116.5,3116.2,0.001]
[1767932281981,0.94496363,3116.8,3116.2,0.001]
[1767932282195,0.94496363,3116.7,3116.2,0.001]
[1767932282848,0.94496363,3116.7,3116.5,0.001]
[1767932283351,0.41533881,3116.6,3116.5,0.001]
[1767932284460,1.40026314,3116.6,3116.5,0.001]
[1767932284788,0.98692433,3116.9,3116.5,0.001]
[1767932284991,0.98492433,3116.8,3116.5,0.001]
[1767932290785,4.19337001,3116.8,3116.5,0.001]
[1767932290991,0.92101026,3116.9,3116.5,0.001]
[1767932292984,0.91901026,3116.7,3116.5,0.001]
[1767932293186,1.33175318,3116.6,3116.5,0.001]
[1767932293586,0.91901026,3116.5,3116.2,0.001]
[1767932295197,0.91901026,3116.4,3116.2,0.001]
[1767932298902,0.91901026,3116.4,3115.2,2.96846006]
[1767932298903,0.91901026,3116.3,3115.2,0.92042846]
[1767932299070,1.03051783,3116.2,3115.4,0.92042846]
[1767932299274,0.842,3116.4,3115.8,0.92042846]
[1767932299603,3.20876663,3116.5,3115.8,0.92042846]
[1767932300495,0.91901026,3116.4,3115.7,2.96846006]
[1767932300689,3.20876663,3116.5,3115.8,0.92042846]
[1767932301003,0.36215096,3116.4,3115.8,0.92042846]
[1767932301801,0.002,3116.9,3116.3,3.88888852]
[1767932302112,0.92101026,3116.9,3116.3,2.96846006]
[1767932302407,4.12933289,3116.9,3116.3,2.96846006]
[1767932303410,0.92101026,3116.9,3116.3,2.96846006]
[1767932303875,0.002,3116.9,3116.3,3.88888852]
[1767932304708,0.92101026,3116.9,3116.3,2.96846006]
[1767932305206,0.002,3116.9,3116.3,3.88888852]
[1767932305797,0.92101026,3116.9,3116.3,2.96846006]